Cogmind - Beta 13 *** ADVENTURER MODE // 2024.04.02 @ 20:10:59 Player: Compilatron Result: Destroyed by P-80 Master with Gamma Rifle Performance ------------- Evolutions (7) 3500 Regions Visited (17) 3400 Robots Destroyed (93) 465 Value Destroyed (3176) 3176 Prototype IDs (40) 800 Alien Tech Used (2) 400 Bonus (1122) 1122 TOTAL SCORE: 12863 Bonus ------- High Alert Combat Kills 22 Entered DSFs 500 Aligned with FarCom 300 Met Zhirov 300 Cogmind --------- Core Integrity 0/1300 Matter 267/300 Energy 77/100 System Corruption 9% Temperature Warm (135) Movement Core (250) Ox4 Location -3/Research Parts ------- > --- POWER (2) -------- (None) > --- PROPULSION (6) --- (None) > --- UTILITY (9) ------ Advanced Coolant Injector Advanced Target Analyzer Hacking Suite > --- WEAPON (4) ------- Nova Cannon > --- INVENTORY (5) ---- Large Storage Unit System Restoration Module Peak State ------------ > --- POWER ------------ Cooled Ion Engine Fusion Reactor > --- PROPULSION ------- Xenon Bombardment Thruster Flying Fortress v7 > --- UTILITY ---------- Large Storage Unit Experimental Core Shielding Improved Propulsion Shielding Hacking Suite Hacking Suite System Shield Advanced System Shield > --- WEAPON ----------- Gatling Laser Minigun KE Penetrator > --- INVENTORY -------- Nuclear Pulse Array Coolant Injector High-capacity Storage Unit Advanced Visual Processing Unit Enhanced Optical Array Improved Targeting Computer Advanced ECM Suite Hacking Suite System Shield System Restoration Module Advanced Plasma Cannon Coil Gun Missile Launcher Precision Grenade Launcher [Rating: 93] Favorites ----------- Power Cooled Ion Engine Engine Cooled Ion Engine Reactor Fusion Reactor Propulsion Light Treads Treads Light Treads Leg Aluminum Leg Hover Unit Improved Antigrav System Flight Unit Flying Fortress v7 Utility Large Storage Unit Device Improved Heat Sink Storage Large Storage Unit Processor Improved Signal Interpreter Hackware Hacking Suite Protection Improved Medium Armor Plating Weapon Minigun Energy Gun Arc Projector Energy Cannon Nova Cannon Ballistic Gun Minigun Ballistic Cannon Enhanced Gauss Cannon Launcher Rocket Launcher Special Weapon Mining Laser Build | -11 -10 -10 -10 -9 -8 -7 -7 -7 -6 -5 -5 -5 -5 -4 -4 -4 -3 ------- Run | Yrd Mat Min Exi Min Mat Fac Low Low Fac Fac Upp Upp Zhi Pro Fac DSF Res Slots Evolved 14 | . . . . . 4 2 . . 2 2 . . . . 2 . 2 Power 1 | . . . . . . . . . . 1 . . . . . . . Propulsion 4 | . . . . . 2 . . . . 1 . . . . 1 . . Utility 7 | . . . . . 2 1 . . 2 . . . . . . . 2 Weapon 2 | . . . . . . 1 . . . . . . . . 1 . . Parts Attached 89 | 8 5 3 . 2 18 9 . . 5 7 1 1 2 6 2 3 17 Power 11 | 1 . . . 1 2 1 . . . 1 . . 1 . . . 4 Engine 6 | 1 . . . 1 2 1 . . . 1 . . . . . . . Core . | . . . . . . . . . . . . . . . . . . Reactor 5 | . . . . . . . . . . . . . 1 . . . 4 Propulsion 12 | 4 2 . . . 1 . . . . 1 . . . 1 . . 3 Treads 4 | 2 2 . . . . . . . . . . . . . . . . Leg 2 | 2 . . . . . . . . . . . . . . . . . Wheel . | . . . . . . . . . . . . . . . . . . Hover 3 | . . . . . . . . . . . . . . . . . 3 Flight 3 | . . . . . 1 . . . . 1 . . . 1 . . . Utility 29 | 1 1 2 . . 7 3 . . 4 1 . 1 1 2 2 . 4 Device 6 | . . . . . 2 . . . . 1 . . . . 2 . 1 Storage 5 | 1 1 . . . . . . . 2 . . . . . . . 1 Processor 5 | . . 1 . . 2 . . . . . . . . 1 . . 1 Hackware 6 | . . . . . 1 1 . . 2 . . . . 1 . . 1 Protection 7 | . . 1 . . 2 2 . . . . . 1 1 . . . . Artifact . | . . . . . . . . . . . . . . . . . . Weapon 37 | 2 2 1 . 1 8 5 . . 1 4 1 . . 3 . 3 6 Energy Gun 11 | 1 . . . . 2 4 . . 1 1 . . . . . . 2 Energy Cannon 5 | . . . . . . . . . . 1 . . . . . . 4 Ballistic Gun 11 | 1 2 . . . 2 1 . . . 2 1 . . 2 . . . Ballistic Cannon 3 | . . . . . . . . . . . . . . . . 3 . Launcher 5 | . . . . 1 3 . . . . . . . . 1 . . . Special Weapon 2 | . . 1 . . 1 . . . . . . . . . . . . Impact Weapon . | . . . . . . . . . . . . . . . . . . Slashing Weapon . | . . . . . . . . . . . . . . . . . . Piercing Weapon . | . . . . . . . . . . . . . . . . . . Special Melee Weapon . | . . . . . . . . . . . . . . . . . . Unidentified Prototypes 8 | . . . . . 2 . . . . . . . 4 1 . . 1 Parts Lost 27 | . . . . 1 1 . . . . 1 1 1 . 8 . . 14 Power 5 | . . . . 1 . . . . . . . . . 1 . . 3 Propulsion 6 | . . . . . . . . . . . . . . 2 . . 4 Utility 7 | . . . . . . . . . . . 1 1 . 3 . . 2 Weapon 9 | . . . . . 1 . . . . 1 . . . 2 . . 5 Highest Loss Streak 14 | . . . . 1 1 . . . . 1 1 1 . 4 . . 14 To Critical Strikes 1 | . . . . . . . . . . . . 1 . . . . . Average Slot Usage (%) 78 | . 84 92 100 99 71 75 76 76 78 81 77 80 79 64 23 22 23 Engine 9 | . 14 14 14 13 9 7 7 7 6 11 11 11 7 4 . . . Treads 10 | . 27 28 28 28 . . . . . . . . . . . . . Flight 5 | . . . . . 9 7 7 7 6 11 11 11 11 6 5 5 3 Device 3 | . . . . . 9 7 7 7 6 4 5 3 . . 7 6 4 Storage 8 | . 14 14 14 14 9 7 7 7 6 5 5 5 5 4 . . . Processor 3 | . . . 14 14 9 2 . . . . . . . . 5 5 4 Hackware 8 | . . . . . 2 12 15 15 26 23 23 23 23 19 . . 2 Protection 4 | . . 7 . . 6 6 7 7 6 5 4 5 8 7 . . . Energy Gun 6 | . 14 . . . 1 10 15 15 11 10 5 5 5 2 . . 2 Ballistic Gun 9 | . 14 14 14 14 9 11 7 7 6 5 6 11 11 8 5 2 . Launcher 1 | . . . . 13 1 . . . . . . . . 1 . . . Special Weapon 3 | . . 13 14 . 4 . . . . . . . . . . . . Naked Turns 21 | . . . . . . . . . . . . . . 21 . . . Heaviest Build 57 | 10 26 29 26 31 46 47 47 47 47 55 56 51 55 57 7 7 21 Greatest Support 56 | 40 40 40 40 40 50 50 50 50 50 56 56 56 56 56 13 13 36 Greatest Overweight (x) 16 | . 2 . . . . . . . . . . . . 16 . . 4 Average Overweight (x) . | . . . . . . . . . . . . . . . . . . Largest Inventory Capacity 20 | 8 15 15 15 15 15 15 15 15 20 15 15 15 15 15 5 5 15 Average Capacity 13 | 6 10 15 15 15 15 15 15 15 15 15 15 15 15 13 5 5 5 Most Carried 15 | 5 7 7 10 12 11 15 15 15 15 15 15 14 15 15 2 2 5 Average Carried 8 | 3 3 5 7 10 4 10 15 15 14 14 14 14 14 13 1 1 4 Final Capacity 15 | 8 15 15 15 15 15 15 15 15 15 15 15 15 15 5 5 5 5 Final Carried 15 | 2 4 6 10 12 6 15 15 15 15 15 15 14 15 1 1 1 2 Class Distribution -------------------- 47% | Mutant 29% | Hacker-Skirmisher 11% | Hacker-Tank 9% | Hacker-Mutant Dominant Class ---------------- Mutant | -10/Materials Mutant | -10/Mines Mutant | -10/Exiles Mutant | -9/Mines Mutant | -8/Materials Hacker-Skirmisher | -7/Factory Hacker-Tank | -7/Lower Caves Hacker-Tank | -7/Lower Caves Hacker-Skirmisher | -6/Factory Hacker-Skirmisher | -5/Factory Hacker-Mutant | -5/Upper Caves Hacker-Tank | -5/Upper Caves Hacker-Tank | -5/Zhirov Hacker-Tank | -4/Proximity Caves Scout | -4/Factory Scout | -4/DSF Hacker-Mutant | -3/Research Resources | -11 -10 -10 -10 -9 -8 -7 -7 -7 -6 -5 -5 -5 -5 -4 -4 -4 -3 ----------- Run | Yrd Mat Min Exi Min Mat Fac Low Low Fac Fac Upp Upp Zhi Pro Fac DSF Res Matter Collected 2128 | 205 155 90 . 100 279 473 42 12 . 156 129 88 . 145 . . 254 Remotely . | . . . . . . . . . . . . . . . . . . Salvage Created 3108 | . 208 137 . 134 455 837 112 56 . 173 288 208 . 96 . . 404 Parts 182 | . 15 8 . 13 33 43 8 3 . 9 10 13 . 2 . . 25 Haulers Intercepted . | . . . . . . . . . . . . . . . . . . Recyclers Shooed . | . . . . . . . . . . . . . . . . . . Parts Field Recycled . | . . . . . . . . . . . . . . . . . . Retrieved Matter . | . . . . . . . . . . . . . . . . . . Parts Self-Destructed 35 | . . . . . . . 7 5 . . 10 13 . . . . . Prevented 5 | . . . . . . . 1 . . . 1 3 . . . . . Kills | -11 -10 -10 -10 -9 -8 -7 -7 -7 -6 -5 -5 -5 -5 -4 -4 -4 -3 ------- Run | Yrd Mat Min Exi Min Mat Fac Low Low Fac Fac Upp Upp Zhi Pro Fac DSF Res Combat Hostiles Destroyed 84 | . 8 3 . 11 14 13 4 2 . 5 5 9 . 3 . . 7 Guns 62 | . 8 3 . 2 8 12 4 2 . 5 5 9 . 1 . . 3 Cannons 6 | . . . . . 2 . . . . . . . . . . . 4 AOE 16 | . . . . 9 4 1 . . . . . . . 2 . . . Classes Destroyed 14 | . 3 . . 3 3 4 . . . . . . . 1 . . . Worker 2 | . . . . 1 1 . . . . . . . . . . . . Builder 1 | . . . . 1 . . . . . . . . . . . . . Tunneler 1 | . . . . 1 . . . . . . . . . . . . . Recycler 1 | . . . . . 1 . . . . . . . . . . . . Operator 1 | . . . . . . 1 . . . . . . . . . . . Drone 1 | . . . . . . . . . . . . . . 1 . . . Watcher 3 | . 1 . . . . 2 . . . . . . . . . . . Swarmer 40 | . 6 . . 8 5 . 4 2 . 4 . 9 . . . . 2 Grunt 23 | . 2 3 . 3 4 8 . . . . 3 . . . . . . Brawler 3 | . . . . . 1 2 . . . . . . . . . . . Duelist 1 | . . . . . . 1 . . . . . . . . . . . Sentry 5 | . . . . . 4 . . . . 1 . . . . . . . Hunter 6 | . . . . . . 1 . . . . 2 . . 2 . . 1 Programmer 5 | . . . . . . 1 . . . . . . . . . . 4 Best Kill Streak 7 | . 3 2 . 6 7 4 4 2 . 4 3 5 . 2 . . 3 Combat Bots Only 6 | . 3 2 . 4 6 4 4 2 . 4 3 5 . 2 . . 3 Max Kills in Single Turn 4 | . 1 1 . 4 2 1 1 1 . 1 1 2 . 2 . . 1 Gunslinging 1 | . . . . . . . . . . . . 1 . . . . . Exploded 4 | . . . . 4 2 1 . . . . . . . 2 . . . Melee . | . . . . . . . . . . . . . . . . . . Uniques/NPCs Destroyed . | . . . . . . . . . . . . . . . . . . Combat | -11 -10 -10 -10 -9 -8 -7 -7 -7 -6 -5 -5 -5 -5 -4 -4 -4 -3 -------- Run | Yrd Mat Min Exi Min Mat Fac Low Low Fac Fac Upp Upp Zhi Pro Fac DSF Res Hostile Shots Fired 729 | . 35 24 . 22 89 30 23 7 . 52 72 23 . 83 . 38 231 Missed 287 | . 12 7 . 7 42 18 11 5 . 26 30 9 . 31 . 17 72 Damage Taken 6198 | . 147 169 . 134 472 165 114 22 . 458 555 162 . 749 . 352 2699 Core 1807 | . 40 28 . 36 62 11 . . . 31 47 . . 74 . 167 1311 Absorbed by Shields . | . . . . . . . . . . . . . . . . . . Redirected to Shielding 142 | . . . . . . . . . . . . 51 . 91 . . . Ignored by Resistances 1737 | . 49 52 . 43 142 46 34 7 . 129 157 48 . 211 . 94 725 Regen/Repaired (Parts) 119 | . . . . . . 83 . . 23 13 . . . . . . . Core Remaining (%) 86 | 100 . . . 58 88 . . 98 100 . . . . 76 . 85 . Volleys Fired 276 | . 21 27 . 14 57 36 8 3 . 13 20 10 . 12 . 11 44 Largest 3 | . 2 1 . 2 2 3 3 3 . 3 3 3 . 3 . 2 2 Hottest 226 | . 60 100 . 53 125 160 160 160 . 160 138 138 . 138 . 87 226 Shots Fired 503 | . 37 27 . 16 74 102 24 9 . 37 49 30 . 33 . 12 53 Gun 454 | . 37 23 . 10 62 102 24 9 . 37 49 30 . 31 . 9 31 Cannon 25 | . . . . . . . . . . . . . . . . 3 22 Launcher 15 | . . . . 6 7 . . . . . . . . 2 . . . Special 9 | . . 4 . . 5 . . . . . . . . . . . . Kinetic 275 | . 21 23 . 10 56 59 8 3 . 13 29 20 . 21 . 12 . Thermal 151 | . 16 4 . . 11 7 8 3 . 11 20 10 . 10 . . 51 Explosive 15 | . . . . 6 7 . . . . . . . . 2 . . . Electromagnetic 62 | . . . . . . 36 8 3 . 13 . . . . . . 2 Robot Hit Streak 41 | . 7 17 . 29 38 41 6 6 . 19 9 7 . 5 . 4 10 Robot Miss Streak 3 | . 2 1 . . 2 2 1 1 . 1 3 3 . 2 . 2 3 Penetration Max . | . . . . . . . . . . . . . . . . . . Secondary Targets 9 | . 2 . . . . . 2 1 . 1 1 2 . . . . . Max Gunslinging Chain 1 | . 1 . . . . . 1 1 . 1 1 1 . . . . . Shots Hit Robots 381 | . 27 21 . 12 57 85 14 6 . 29 39 21 . 22 . 8 40 Core Hits 204 | . 12 8 . 17 31 42 8 4 . 20 21 15 . 11 . 2 13 Critical Kills 1 | . . . . . 1 . . . . . . . . . . . . Critical Parts Destroyed . | . . . . . . . . . . . . . . . . . . Critical Strikes 4 | . . . . . 1 . . . . . . . . . . 1 2 Burn 2 | . . . . . . . . . . . . . . . . . 2 Destroy 1 | . . . . . 1 . . . . . . . . . . . . Blast 1 | . . . . . . . . . . . . . . . . 1 . Melee Attacks . | . . . . . . . . . . . . . . . . . . Impact . | . . . . . . . . . . . . . . . . . . Slashing . | . . . . . . . . . . . . . . . . . . Piercing . | . . . . . . . . . . . . . . . . . . Sneak Attacks . | . . . . . . . . . . . . . . . . . . Combat Hostiles . | . . . . . . . . . . . . . . . . . . Follow-up Attacks . | . . . . . . . . . . . . . . . . . . Damage Inflicted 8933 | . 277 249 . 1095 1523 1411 210 118 . 667 807 427 . 533 . 219 1397 Guns 6078 | . 277 249 . 111 788 1257 210 118 . 667 807 427 . 364 . 154 649 Cannons 790 | . . . . . . . . . . . . . . . . 65 725 Explosions 1970 | . . . . 984 663 154 . . . . . . . 169 . . . Melee . | . . . . . . . . . . . . . . . . . . Ramming 23 | . . . . . . . . . . . . . . . . . 23 Kinetic 3303 | . 165 249 . 111 723 770 45 19 . 208 363 261 . 170 . 219 . Thermal 3253 | . 112 . . . 137 316 100 77 . 381 444 166 . 194 . . 1326 Explosive 1816 | . . . . 984 663 . . . . . . . . 169 . . . Electromagnetic 538 | . . . . . . 325 65 22 . 78 . . . . . . 48 Impact . | . . . . . . . . . . . . . . . . . . Slashing . | . . . . . . . . . . . . . . . . . . Piercing . | . . . . . . . . . . . . . . . . . . Highest Corruption 9 | . . . . . . . . . . 1 1 1 1 7 . . 9 Average Corruption 2 | . . . . . . . . . . 1 1 1 1 2 . . 5 Corruption Purged . | . . . . . . . . . . . . . . . . . . Corruption Blocked . | . . . . . . . . . . . . . . . . . . Effects 5 | . . . . . . . . . . . . . 1 1 . . 3 Message Errors 1 | . . . . . . . . . . . . . . . . . 1 Matter Fused 2 | . . . . . . . . . . . . . . . . . 2 Heat Flow Errors 1 | . . . . . . . . . . . . . . 1 . . . Data Loss (minor) 1 | . . . . . . . . . . . . . 1 . . . . Overload Shots . | . . . . . . . . . . . . . . . . . . Overflow Damage 179 | . . . . 88 24 . . . . . . . . . . . 67 Projectiles 67 | . . . . . . . . . . . . . . . . . 67 Explosions 112 | . . . . 88 24 . . . . . . . . . . . . Melee . | . . . . . . . . . . . . . . . . . . Knockbacks 1 | . . . . . . . . . . . . . . . . 1 . Impact . | . . . . . . . . . . . . . . . . . . Kinetic 1 | . . . . . . . . . . . . . . . . 1 . Secondary . | . . . . . . . . . . . . . . . . . . Self-Inflicted Damage 42 | . . . . . 34 . . . . . . . . . . . 8 Shots 3 | . . . . . 3 . . . . . . . . . . . . Rammed 14 | . . . . . . . . . . . . . . . . . 14 Targets Rammed 14 | . . . . . . . . . . . . . . . . . 14 Kicked . | . . . . . . . . . . . . . . . . . . Crushed . | . . . . . . . . . . . . . . . . . . Highest Temperature 501 | . 64 24 . 12 22 111 270 154 . 175 199 201 . 501 . . 196 Average Temperature 90 | . 26 10 . 7 7 32 129 80 . 74 99 74 . 199 . . 75 Received Heat Transfer 1090 | . 24 165 . 87 189 72 . . . 30 156 . . 63 . . 304 Effects 8 | . . . . . . . . . . . . . . 8 . . . Shutdowns 3 | . . . . . . . . . . . . . . 3 . . . Interference 3 | . . . . . . . . . . . . . . 3 . . . Matter Decay 1 | . . . . . . . . . . . . . . 1 . . . Damage (minor) 1 | . . . . . . . . . . . . . . 1 . . . Siege Activations . | . . . . . . . . . . . . . . . . . . Robots Corrupted . | . . . . . . . . . . . . . . . . . . Combat Hostiles . | . . . . . . . . . . . . . . . . . . Parts Fried . | . . . . . . . . . . . . . . . . . . Impact Corruptions . | . . . . . . . . . . . . . . . . . . Robots Melted . | . . . . . . . . . . . . . . . . . . Combat Hostiles . | . . . . . . . . . . . . . . . . . . Parts Melted 12 | . . . . . . . . 1 . 1 4 1 . . . . 5 Heat Transferred 5617 | . 250 . . . 300 525 225 175 . 726 1000 375 . 450 . . 1591 Parts Sabotaged . | . . . . . . . . . . . . . . . . . . Parts Stolen . | . . . . . . . . . . . . . . . . . . Parts Stripped . | . . . . . . . . . . . . . . . . . . Power Chain Reactions 2 | . . . . . . 2 . . . . . . . . . . . Alert | -11 -10 -10 -10 -9 -8 -7 -7 -7 -6 -5 -5 -5 -5 -4 -4 -4 -3 ------- Run | Yrd Mat Min Exi Min Mat Fac Low Low Fac Fac Upp Upp Zhi Pro Fac DSF Res Peak Influence 467 | . 165 81 . 202 416 174 . . 67 117 . . . . 467 289 257 Initial 463 | . . . . . 34 160 . . 67 27 . . . . 463 287 141 Average 100 | . 67 24 . 111 296 72 . . 67 40 . . . . 463 287 149 Maximum Alert Level 2 | . . . . 1 2 . . . . . . . . . 2 1 1 Low Security (%) 83 | 100 100 100 . 52 19 100 . . 100 100 . . . . . . 83 Level 1 11 | . . . . 47 43 . . . . . . . . . . 100 16 Level 2 5 | . . . . . 36 . . . . . . . . . 100 . . Level 3 . | . . . . . . . . . . . . . . . . . . Level 4 . | . . . . . . . . . . . . . . . . . . Level 5 . | . . . . . . . . . . . . . . . . . . High Security . | . . . . . . . . . . . . . . . . . . Max Security . | . . . . . . . . . . . . . . . . . . Squads Dispatched 12 | . 1 . . 1 . 3 . . 1 . . . . . . 1 5 Investigation 4 | . 1 . . 1 . 1 . . . . . . . . . . 1 Extermination 4 | . . . . . . 1 . . 1 . . . . . . . 2 Reinforcement 2 | . . . . . . 1 . . . . . . . . . 1 . Assault . | . . . . . . . . . . . . . . . . . . Garrison 2 | . . . . . . . . . . . . . . . . . 2 Intercept . | . . . . . . . . . . . . . . . . . . Searches Triggered . | . . . . . . . . . . . . . . . . . . Construction Impeded . | . . . . . . . . . . . . . . . . . . Haulers Reinforced . | . . . . . . . . . . . . . . . . . . Active Scanning Responses . | . . . . . . . . . . . . . . . . . . Cargo Convoy Interrupts 1 | . . . . . . . . . . 1 . . . . . . . Stealth | -11 -10 -10 -10 -9 -8 -7 -7 -7 -6 -5 -5 -5 -5 -4 -4 -4 -3 --------- Run | Yrd Mat Min Exi Min Mat Fac Low Low Fac Fac Upp Upp Zhi Pro Fac DSF Res Distress Signals 5 | . . . . . 1 2 . . . 1 . . . . . . 1 Communications Jammed . | . . . . . . . . . . . . . . . . . . Distress Signals . | . . . . . . . . . . . . . . . . . . Times Spotted 152 | . 10 4 . 10 23 16 6 3 . 12 19 9 . 9 . 4 27 Peak Tracking Total 10 | . 4 2 . 4 6 4 4 2 1 5 10 4 . 5 . 4 10 Tactical Retreats 15 | . . . . . 2 1 1 . . 1 5 . . 1 . . 4 Traps | -11 -10 -10 -10 -9 -8 -7 -7 -7 -6 -5 -5 -5 -5 -4 -4 -4 -3 ------- Run | Yrd Mat Min Exi Min Mat Fac Low Low Fac Fac Upp Upp Zhi Pro Fac DSF Res Traps Triggered 3 | . 3 . . . . . . . . . . . . . . . . Indirectly . | . . . . . . . . . . . . . . . . . . Trap Hack Attempts . | . . . . . . . . . . . . . . . . . . Triggered . | . . . . . . . . . . . . . . . . . . Disarmed . | . . . . . . . . . . . . . . . . . . Reprogrammed . | . . . . . . . . . . . . . . . . . . Reused . | . . . . . . . . . . . . . . . . . . Traps Extracted . | . . . . . . . . . . . . . . . . . . Installed . | . . . . . . . . . . . . . . . . . . Triggered 2 | . . . . . . . . . . . 1 1 . . . . . Machines | -11 -10 -10 -10 -9 -8 -7 -7 -7 -6 -5 -5 -5 -5 -4 -4 -4 -3 ---------- Run | Yrd Mat Min Exi Min Mat Fac Low Low Fac Fac Upp Upp Zhi Pro Fac DSF Res Machines Disabled 1 | . . . . . 1 . . . . . . . . . . . . Max in Single Turn 1 | . . . . . 1 . . . . . . . . . . . . Garrison Access 4 | . . . . . 1 2 . . . 1 . . . . . . . Machines Repaired . | . . . . . . . . . . . . . . . . . . Machines Dismantled . | . . . . . . . . . . . . . . . . . . Machines Sabotaged . | . . . . . . . . . . . . . . . . . . Overloaded Fab Kills . | . . . . . . . . . . . . . . . . . . Hacking | -11 -10 -10 -10 -9 -8 -7 -7 -7 -6 -5 -5 -5 -5 -4 -4 -4 -3 --------- Run | Yrd Mat Min Exi Min Mat Fac Low Low Fac Fac Upp Upp Zhi Pro Fac DSF Res Machines Accessed 49 | . 5 . 1 1 6 12 1 . 3 5 . 1 9 . 1 . 4 Terminals 22 | . 3 . . . 4 7 . . 1 3 . . . . 1 . 3 Fabricators . | . . . . . . . . . . . . . . . . . . Repair Stations 3 | . . . . . . 1 . . 1 1 . . . . . . . Recycling Units 7 | . 2 . . . 1 2 . . 1 . . . . . . . 1 Scanalyzers . | . . . . . . . . . . . . . . . . . . Garrison Access 4 | . . . . . 1 2 . . . 1 . . . . . . . Total Hacks 122 | . 8 . 1 1 11 22 1 . 7 14 . 1 48 . 1 . 7 Successful 89 | . 4 . 1 1 5 11 1 . 7 6 . 1 48 . 1 . 3 Failed 33 | . 4 . . . 6 11 . . . 8 . . . . . . 4 Catastrophic 10 | . 3 . . . 1 2 . . . 2 . . . . . . 2 Database Lockouts . | . . . . . . . . . . . . . . . . . . Manual 38 | . 7 . 1 . 9 10 . . 1 5 . . . . . . 5 Terminals 38 | . 4 . . . 8 9 . . 3 8 . . . . 1 . 5 Fabricators . | . . . . . . . . . . . . . . . . . . Repair Stations 7 | . . . . . . 2 . . 2 3 . . . . . . . Recycling Units 16 | . 4 . . . 2 6 . . 2 . . . . . . . 2 Scanalyzers . | . . . . . . . . . . . . . . . . . . Garrison Access 9 | . . . . . 1 5 . . . 3 . . . . . . . Terminal Hacks 66 | . 1 . 1 1 . 4 1 . 3 3 . 1 48 . 1 . 2 Record 42 | . . . . . . 1 . . 3 . . . 36 . . . 2 Part Schematic 4 | . . . . . . . . . . . . . 4 . . . . Robot Analysis 6 | . . . . . . . . . . 2 . . 4 . . . . Prototype ID Bank 4 | . . . . . . . . . . . . . 4 . . . . Open Door 3 | . . . . 1 . . 1 . . . . 1 . . . . . Open DSF 2 | . . . . . . 1 . . . . . . . . 1 . . Level Access Points 1 | . 1 . . . . . . . . . . . . . . . . Terminal Index 1 | . . . . . . . . . . 1 . . . . . . . Unreport Threat 1 | . . . . . . 1 . . . . . . . . . . . Locate Traps 1 | . . . . . . 1 . . . . . . . . . . . Derelict Proto ID Bank 1 | . . . 1 . . . . . . . . . . . . . . Fabricator Hacks . | . . . . . . . . . . . . . . . . . . Repair Station Hacks 6 | . . . . . . 2 . . 2 2 . . . . . . . Scan Component 3 | . . . . . . 1 . . 1 1 . . . . . . . Repair 3 | . . . . . . 1 . . 1 1 . . . . . . . Recycling Unit Hacks 4 | . 1 . . . 1 1 . . 1 . . . . . . . . Report Inventory 2 | . 1 . . . 1 . . . . . . . . . . . . Retrieve Components 2 | . . . . . . 1 . . 1 . . . . . . . . Scanalyzer . | . . . . . . . . . . . . . . . . . . Garrison Access Hacks 4 | . . . . . 1 2 . . . 1 . . . . . . . Seal Access 4 | . . . . . 1 2 . . . 1 . . . . . . . Unauthorized Hacks 9 | . 2 . . . 3 2 . . 1 . . . . . . . 1 Terminals 2 | . . . . . 2 . . . . . . . . . . . . Assimilate 1 | . . . . . 1 . . . . . . . . . . . . Operators 1 | . . . . . 1 . . . . . . . . . . . . Fabricators . | . . . . . . . . . . . . . . . . . . Repair Stations . | . . . . . . . . . . . . . . . . . . Recycling Units 7 | . 2 . . . 1 2 . . 1 . . . . . . . 1 Reject 7 | . 2 . . . 1 2 . . 1 . . . . . . . 1 Scanalyzers . | . . . . . . . . . . . . . . . . . . Garrison Access . | . . . . . . . . . . . . . . . . . . Data Cores Recovered . | . . . . . . . . . . . . . . . . . . Used . | . . . . . . . . . . . . . . . . . . Hacking Detections 23 | . 4 . . . 4 6 . . 2 3 . . . . . . 4 Full Trace Events 2 | . . . . . . 1 . . . . . . . . . . 1 Feedback Events . | . . . . . . . . . . . . . . . . . . Feedback Blocked . | . . . . . . . . . . . . . . . . . . Robot Schematics Acquired . | . . . . . . . . . . . . . . . . . . Robots Built . | . . . . . . . . . . . . . . . . . . Authchips . | . . . . . . . . . . . . . . . . . . Time . | . . . . . . . . . . . . . . . . . . Total Robot Build Rating . | . . . . . . . . . . . . . . . . . . Part Schematics Acquired 4 | . . . . . . . . . . . . . 4 . . . . Parts Built . | . . . . . . . . . . . . . . . . . . Authchips . | . . . . . . . . . . . . . . . . . . Time . | . . . . . . . . . . . . . . . . . . Total Part Build Rating . | . . . . . . . . . . . . . . . . . . Parts Repaired 3 | . . . . . . 1 . . 1 1 . . . . . . . Time 120 | . . . . . . 38 . . 44 38 . . . . . . . Parts Recycled . | . . . . . . . . . . . . . . . . . . Recycled Matter . | . . . . . . . . . . . . . . . . . . Retrieved Matter . | . . . . . . . . . . . . . . . . . . Retrieved Components 10 | . . . . . . 10 . . . . . . . . . . . Parts Scanalyzed . | . . . . . . . . . . . . . . . . . . Part Schematics Acquired . | . . . . . . . . . . . . . . . . . . Parts Damaged . | . . . . . . . . . . . . . . . . . . Bothacking | -11 -10 -10 -10 -9 -8 -7 -7 -7 -6 -5 -5 -5 -5 -4 -4 -4 -3 ------------ Run | Yrd Mat Min Exi Min Mat Fac Low Low Fac Fac Upp Upp Zhi Pro Fac DSF Res Used RIF Installer . | . . . . . . . . . . . . . . . . . . Robots Hacked . | . . . . . . . . . . . . . . . . . . Non-combat . | . . . . . . . . . . . . . . . . . . Combat . | . . . . . . . . . . . . . . . . . . Robot Hacks Applied . | . . . . . . . . . . . . . . . . . . Relay Couplers Released . | . . . . . . . . . . . . . . . . . . Fabnet Peak Effective % . | . . . . . . . . . . . . . . . . . . Robots Rewired . | . . . . . . . . . . . . . . . . . . Allies Hacked . | . . . . . . . . . . . . . . . . . . Hacks Repelled . | . . . . . . . . . . . . . . . . . . Allies | -11 -10 -10 -10 -9 -8 -7 -7 -7 -6 -5 -5 -5 -5 -4 -4 -4 -3 -------- Run | Yrd Mat Min Exi Min Mat Fac Low Low Fac Fac Upp Upp Zhi Pro Fac DSF Res Total Allies 1 | . . . . . 1 . . . . . . . . . . . . Largest Group 1 | . . . . . 1 1 . . . . . . . . . . . Highest-Rated Group 26 | . . . . . 26 26 . . . . . . . . . . . Highest-Rated Ally 26 | . . . . . 26 26 . . . . . . . . . . . Total Orders . | . . . . . . . . . . . . . . . . . . Ally Attacks . | . . . . . . . . . . . . . . . . . . Total Damage . | . . . . . . . . . . . . . . . . . . Kills . | . . . . . . . . . . . . . . . . . . Allies Corrupted . | . . . . . . . . . . . . . . . . . . Allies Melted . | . . . . . . . . . . . . . . . . . . Intel | -11 -10 -10 -10 -9 -8 -7 -7 -7 -6 -5 -5 -5 -5 -4 -4 -4 -3 ------- Run | Yrd Mat Min Exi Min Mat Fac Low Low Fac Fac Upp Upp Zhi Pro Fac DSF Res Robot Analysis Total 6 | . . . . . . . . . . 2 . . 4 . . . . Derelict Logs Recovered 5 | . . 1 . 1 . . . 1 . . . 2 . . . . . Drone Launches . | . . . . . . . . . . . . . . . . . . Drone Recoveries . | . . . . . . . . . . . . . . . . . . Exploration | -11 -10 -10 -10 -9 -8 -7 -7 -7 -6 -5 -5 -5 -5 -4 -4 -4 -3 ------------- Run | Yrd Mat Min Exi Min Mat Fac Low Low Fac Fac Upp Upp Zhi Pro Fac DSF Res Turns Passed 8232 | 61 854 1048 494 627 778 1393 250 138 272 887 203 176 189 167 52 44 599 Spaces Moved 7686 | 42 489 403 309 342 624 1542 442 256 296 765 331 338 430 181 99 37 760 Core 90 | 17 1 . . . . . . . . . . . . 44 . . 28 Treads 1557 | 15 488 403 309 342 . . . . . . . . . . . . . Legs 10 | 10 . . . . . . . . . . . . . . . . . Wheels . | . . . . . . . . . . . . . . . . . . Hover 72 | . . . . . . . . . . . . . . . . . 72 Flight 5957 | . . . . . 624 1542 442 256 296 765 331 338 430 137 99 37 660 Fastest Speed 40 | 50 150 160 160 160 50 50 50 50 50 42 42 42 42 40 40 40 40 Average Speed 69 | 105 159 160 160 160 50 50 50 50 50 42 42 42 42 63 40 40 42 Slowest Speed 850 | 160 160 160 160 160 50 50 50 50 50 42 42 42 42 850 40 40 250 Overloaded Moves . | . . . . . . . . . . . . . . . . . . Propulsion Burnouts . | . . . . . . . . . . . . . . . . . . Robots Hopped 26 | . . . . . 3 10 . . . 1 . . 3 3 . 1 5 Cave-ins Triggered . | . . . . . . . . . . . . . . . . . . Teleports 1 | . . . . . . . . . . . . . 1 . . . . Exploration Rate (%) 45 | 5 71 84 71 88 54 44 61 47 7 17 61 46 62 35 4 43 21 Regions Visited 17 Branch Regions 9 Pre-discovered Areas 4 | . . . . . . . . 1 . . . . 3 . . . . Known Exits Taken 5 | . . 1 1 1 1 . . . . . . . . . 1 . . Unknown Exits Taken 11 | 1 1 . . . . 1 1 1 1 1 1 1 1 1 . . . Scrap Searched 13 | . . 2 . 1 . . 7 1 . . 2 . . . . . . Spaces Dug 16 | . . 4 . 11 1 . . . . . . . . . . . . Terrain Destroyed 151 | . . 4 . 61 42 10 . . . . . 3 . 26 . 1 4 Melee . | . . . . . . . . . . . . . . . . . . Projectile 16 | . . 4 . . 1 . . . . . . 3 . 3 . 1 4 AOE 135 | . . . . 61 41 10 . . . . . . . 23 . . . Terrain Rammed . | . . . . . . . . . . . . . . . . . . Walls Destroyed . | . . . . . . . . . . . . . . . . . . Machines Disabled . | . . . . . . . . . . . . . . . . . . Actions | -11 -10 -10 -10 -9 -8 -7 -7 -7 -6 -5 -5 -5 -5 -4 -4 -4 -3 --------- Run | Yrd Mat Min Exi Min Mat Fac Low Low Fac Fac Upp Upp Zhi Pro Fac DSF Res Total 10072 | 57 529 770 309 406 1006 2083 452 258 418 1306 352 348 434 203 110 52 979 Wait 1903 | . 2 333 . 42 286 476 3 . 115 496 . . . 4 8 . 138 Move 7617 | 41 488 402 308 341 617 1521 441 255 295 762 330 337 423 174 98 34 750 Hop 26 | . . . . . 3 10 . . . 1 . . 3 3 . 1 5 Pick Up 92 | 6 9 3 1 4 13 20 . . 3 13 1 . 3 3 2 3 8 Fast Attach 16 | 4 . . . . . . . . . 1 . . 2 . . . 9 Attach 47 | 2 4 1 . 1 4 6 . . 3 4 1 1 2 5 2 3 8 Detach 4 | . . . . . . 1 . . . 1 . . . . . . 2 Swap 28 | 2 1 2 . 1 14 3 . . 2 2 . . . 1 . . . Drop 45 | 2 4 . . 1 12 10 . . . 13 . . 1 1 . . 1 Fire 276 | . 21 27 . 14 57 36 8 3 . 13 20 10 . 12 . 11 44 Melee . | . . . . . . . . . . . . . . . . . . Ram 14 | . . . . . . . . . . . . . . . . . 14 Kick . | . . . . . . . . . . . . . . . . . . Crush . | . . . . . . . . . . . . . . . . . . Escape Stasis . | . . . . . . . . . . . . . . . . . . Rewire 4 | . . 2 . 2 . . . . . . . . . . . . . Trap . | . . . . . . . . . . . . . . . . . . Miscellaneous . | . . . . . . . . . . . . . . . . . . Route ------- -11/Scrapyard -10/Materials (discovered 4 exits: *Mat x3 / [*Min]) -10/Mines -10/Exiles (discovered 2 exits: *Min x2) -9/Mines -8/Materials -7/Factory -7/Lower Caves -7/Lower Caves -6/Factory -5/Factory -5/Upper Caves -5/Upper Caves -5/Zhirov -4/Proximity Caves -4/Factory -4/DSF -3/Research History --------- Turn | Location | Event 2 | -11/Scrapyard | Discovered new exit (range 16) 62 | -11/Scrapyard | Entered Materials 240 | -10/Materials | Identified exit to Materials 310 | -10/Materials | Build established: Mutant 468 | -10/Materials | Discovered new exit (range 8) 916 | -10/Materials | Entered Mines 1032 | -10/Mines | Assembled infested the area 1956 | -10/Mines | Discovered new exit (range 5) 1963 | -10/Mines | Identified exit to Exiles 1964 | -10/Mines | Entered Exiles 1965 | -10/Exiles | Identified exit to Mines 2038 | -10/Exiles | Met 8R-AWN 2067 | -10/Exiles | Met EX-HEX 2126 | -10/Exiles | Met EX-DEC 2204 | -10/Exiles | Met EX-BIN 2233 | -10/Exiles | Aligned with FarCom system 2235 | -10/Exiles | Given EX-Vault access code 2288 | -10/Exiles | Opened EX-Vault 2307 | -10/Exiles | Found Flying Fortress v7 2341 | -10/Exiles | Warned to stay clear of 0b10 Research branches 2458 | -10/Exiles | Left Exiles lab with Flying Fortress v7 2458 | -10/Exiles | Entered Mines 2474 | -9/Mines | Received a Rocket Launcher from a helpful Derelict 2615 | -9/Mines | YI-UF0 nonchalantly dropped a Grenade Launcher on the ground 2669 | -9/Mines | Learned Materials emergency access door positions 2950 | -9/Mines | Met a Derelict shopkeep closing up shop 3052 | -9/Mines | Discovered new exit (range 12) 3083 | -9/Mines | Identified exit to Materials 3085 | -9/Mines | Entered Materials 3085 | -8/Materials | Evolved 4 slots: Propulsion x2, Utility x2 3822 | -8/Materials | Discovered new exit (range 12) 3831 | -8/Materials | Identified exit to Factory 3863 | -8/Materials | Entered Factory 3863 | -7/Factory | Accompanied by 1 ally 3863 | -7/Factory | Evolved 2 slots: Utility x1, Weapon x1 4166 | -7/Factory | Build established: Hacker-Skirmisher 4402 | -7/Factory | Repaired Minigun 5253 | -7/Factory | Discovered new exit (range 4) 5256 | -7/Factory | Entered Lower Caves 5483 | -7/Lower Caves | Spotted B-75 Beast 5499 | -7/Lower Caves | Discovered new exit (range 15) 5506 | -7/Lower Caves | Entered another Lower Caves area 5560 | -7/Lower Caves | Build established: Hacker-Tank 5639 | -7/Lower Caves | Discovered new exit (range 10) 5644 | -7/Lower Caves | Entered Factory 5644 | -6/Factory | Evolved 2 slots: Utility x2 5732 | -6/Factory | Repaired Gatling Laser 5904 | -6/Factory | Discovered new exit (range 3) 5916 | -6/Factory | Entered another Factory area 5916 | -5/Factory | Evolved 2 slots: Power x1, Propulsion x1 6029 | -5/Factory | Build established: Hacker-Skirmisher 6111 | -5/Factory | Repaired Imp. Heat Sink 6786 | -5/Factory | Cargo convoy interrupted 6799 | -5/Factory | Discovered new exit (range 9) 6803 | -5/Factory | Entered Upper Caves 7003 | -5/Upper Caves | Discovered new exit (range 11) 7006 | -5/Upper Caves | Entered another Upper Caves area 7059 | -5/Upper Caves | Encountered a Warlord checkpoint 7161 | -5/Upper Caves | Learned Factory terminal intel 7169 | -5/Upper Caves | Discovered new exit (range 8) 7169 | -5/Upper Caves | Learned Factory terminal intel 7182 | -5/Upper Caves | Entered Zhirov 7182 | -5/Zhirov | Discovered new exit (range 3) 7193 | -5/Zhirov | Met Zhirov 7204 | -5/Zhirov | Learned location of Quarantine (-3) 7204 | -5/Zhirov | Learned location of Testing (-2) 7204 | -5/Zhirov | Learned location of Command (-1) 7212 | -5/Zhirov | Zhirov requested help retrieving the SGEMP Prototype 7219 | -5/Zhirov | Found Alien Artifact 7220 | -5/Zhirov | Identified Integrated Reactor 7220 | -5/Zhirov | Installed Integrated Reactor, increased core energy generation (+10) 7228 | -5/Zhirov | Found Alien Artifact 7229 | -5/Zhirov | Identified Transdimensional Reconstructor 7229 | -5/Zhirov | Warped through subspace 7316 | -5/Zhirov | Build established: Hacker-Tank 7371 | -5/Zhirov | Entered Proximity Caves 7373 | -4/Proximity Caves | Spotter reported a threat 7374 | -4/Proximity Caves | Spotter reported a threat 7483 | -4/Proximity Caves | Lost 4 parts (1n1u2w) 7504 | -4/Proximity Caves | Spotter reported a threat 7514 | -4/Proximity Caves | Released all parts (9) 7532 | -4/Proximity Caves | Discovered new exit (range 6) 7538 | -4/Proximity Caves | Entered Factory 7538 | -4/Factory | Evolved 2 slots: Propulsion x1, Weapon x1 7539 | -4/Factory | Loaded intel: 24 terminal locations 7545 | -4/Factory | Lost 4 parts (1p1n2u) 7589 | -4/Factory | Identified exit to DSF 7590 | -4/Factory | Entered DSF 7609 | -4/DSF | Additional patrols routed to DSF 7626 | -4/DSF | Discovered new exit (range 20) 7634 | -4/DSF | Entered Research 7634 | -3/Research | Evolved 2 slots: Utility x2 8062 | -3/Research | Garrison activated, responded to threat 8214 | -3/Research | Core integrity fell below 50% 8225 | -3/Research | Core integrity fell below 20% 8233 | -3/Research | Destroyed by P-80 Master with Gamma Rifle Last Messages --------------- 08219_ P-80 Master resets H-77 Assassin, system corruption cleaned. 08220_ K-01 Serf collects debris. 08222_ Penetrated by Slug. 08222_ Slug penetrates Wall. 08222_ Slug penetrates G-67 Veteran. 08224_ Imp. Matter Neutralizer destroyed. 08225_ Acquired Nova Cannon. 08225_ K-01 Serf collects debris. 08225_ Penetrated by Slug. 08225_ Slug penetrates Wall. 08225_ Penetrated by Slug. 08227_ H-77 Assassin destroyed. 08228_ R-10 Processor collects Imp. Antigrav System. 08228_ K-01 Serf collects debris. 08229_ Destroyed Adv. Heat Sink. 08230_ R-10 Processor collects Gamma Rifle. 08231_ Destroyed Plasma Rifle. 08231_ Slug penetrates Wall. Map ----- +----------------------------------------------------+ | ?????????????????????????????????????????????????? | | ?????????????????????????????????????????????????? | | ?????????????????????????????????????????????????? | | ?????????????????????????????????????????????????? | | ?????????????????????????????????????????????????? | | ?????????????????????????????????????????????????? | | ?????????????????????????????????????????????????? | | ?????????????????????????????????????????????????? | | ?????????????? ????????????????????????????????? | | ?????????????? ????????????????????????????????? | | ?????????????? ""??????????????????????????????? | | ?????????????# ""??????????????????????????????? | | ?????????????/ ??????????????????????????????? | | ?????????????# ??????????????????????????????? | | ?????????????# ??????????????????????????????? | | ?????????????# #?#????????????????????????????? | | ?????????????# # ?????????????????????????????? | | ?????????????# # ?????????????????????????????? | | ?????????????# /??????????????????????????????? | | ?????????????# #??????????????????????????????? | | ?????????????# #??????????????????????????????? | | ??????######?# l#??????????????????????????????? | | ??????? #?# #??????????????????????????????? | | ##????? #?# #??????????????????????????????? | | +?????? Y?# #???#########??????????????????? | | #?????? ??# #???# [@! #??????????????????? | | ########+#### #???#=[*! #??????????????????? | | #???#p=gh #??????????????????? | | ########## #???#]gRg #??????????w???????? | | % # # #???#%R%k #??????????????????? | | %%% / w # #####+##/#######???????????????? | | +#### # ! #?????????? | | ?# / ######## ####???????????????? | | # # #??????? #????h?????????????? | | # # #??????? +???h??????????????? | | # # #??????? ?#??????????????????? | | # ?? # #??????? ???????????????????? | | # ??????# #??????? ???????????????????? | | #####??####??# #??????? ???s?s?????????????? | | ####### #???????? +??s???????????????? | | # #???????? ???????????????????? | | # #???????? ????s????????????????? | | """ # #??????????????????????????????? | | """ # ########??????????????????????????????? | | """ # #?????????????????????????????????????? | | # #?????????????????????????????????????? | | # #?????????????????????????????????????? | | """ # #?????????????????????????????????????? | | """ # #?????????????????????????????????????? | | """ # #?????????????????????????????????????? | +----------------------------------------------------+ Best States ------------- Heat Dissipation 65 Coolant Potential 100 Energy Generation 51 Energy Capacity 475 Matter Stores 300 Matter Capacity 300 Sight Range 20 Terrain Scan Range 20 Terrain Scan Density 10 Armor Coverage 225 Resistance: KI 20 Resistance: TH 20 Resistance: EX 20 Resistance: EM 20 Resistance: I 20 Resistance: S 20 Resistance: P 20 Core Shielding 40 Propulsion Shielding 66 Evasion (%) 62 Target Analysis 8 Recoil Reduction 2 Offensive Hacking 30 Defensive Hacking 24 Item Schematics ----------------- Assault Drone Bay | -5/Zhirov | Free Exp. Heat Sink | -5/Zhirov | Free Exp. Optical Array | -5/Zhirov | Free Imp. Arc Thrower | -5/Zhirov | Free Robot Schematics ------------------ None Fabricated ------------ Nothing Alien Tech Used ----------------- Integrated Reactor Transdimensional Reconstructor Achievements -------------- Alien Tech Subspace Traveler The Science Guy Challenges ------------ None Game ------ Seed NodeCoolantBoomstick Manual? 0 Play Time 01:48:21 Cumulative 20.4 hours Start 2024.04.02 @ 18:07:23 End 2024.04.02 @ 20:10:59 Sessions 1 Manual Loads 0 Difficulty Adventurer Special Mode None Game No. 19 Rogue 0 Adventurer 17 Explorer 2 Win Type - Total 0 Types 0/0/0/0/0/0/0/0/0 Lore% 32 Gallery% 24 Achievement% 24 Wizard Run 0 Options --------- Layout 1 ASCII 0 Keyboard 0 Movement Numpad Keybinds 0 Fullscreen 1 Font 24/Smallcaps Map View 50x35 Zoom Use 0% Tactical HUD 1 Map Filters NONE Filters NONE Steam 1 RUN: 4896b893-c0e8-4e55-8ee7-e81f09f9ff1a